[Event "*** SCC Grand Prix: Titled Tuesday Blitz"]
[Site "Chess.com"]
[Date "2020.08.25"]
[Round "7"]
[White "freshfoodcompany"]
[Black "IvanSoriano1"]
[Result "1/2-1/2"]
[WhiteElo "2360"]
[BlackElo "2568"]
[TimeControl "180+1"]
[EndTime "11:21:37 PDT"]
[Termination "Game drawn - insufficient material"]

1. d4 {[%clk 0:03:00.9]} 1... Nf6 {[%clk 0:02:59.7]} 2. c4 {[%clk 0:03:01.2]}
2... e6 {[%clk 0:02:59.9]} 3. Nc3 {[%clk 0:03:00]} 3... Bb4 {[%clk 0:02:59.5]}
4. e3 {[%clk 0:03:00.4]} 4... O-O {[%clk 0:02:58.7]} 5. Bd3 {[%clk 0:03:00.9]}
5... b6 {[%clk 0:02:58.8]} 6. Ne2 {[%clk 0:03:00.4]} 6... Bb7 {[%clk 0:02:59.1]}
7. f3 {[%clk 0:03:00]} 7... c5 {[%clk 0:02:58.1]} 8. O-O {[%clk 0:02:59.3]} 8...
Bxc3 {[%clk 0:02:57.9]} 9. bxc3 {[%clk 0:02:53.2]} 9... d6 {[%clk 0:02:58.1]}
10. e4 {[%clk 0:02:52.9]} 10... e5 {[%clk 0:02:57.5]} 11. Be3 {[%clk 0:02:50.4]}
11... Nbd7 {[%clk 0:02:57]} 12. Qc2 {[%clk 0:02:49.5]} 12... Re8 {[%clk
0:02:57.2]} 13. Rae1 {[%clk 0:02:45.3]} 13... Rc8 {[%clk 0:02:55.1]} 14. Ng3
{[%clk 0:02:34.1]} 14... cxd4 {[%clk 0:02:38.9]} 15. cxd4 {[%clk 0:02:33.5]}
15... exd4 {[%clk 0:02:39.8]} 16. Bxd4 {[%clk 0:02:33.2]} 16... Ne5 {[%clk
0:02:39.4]} 17. f4 {[%clk 0:02:28.5]} 17... Nxd3 {[%clk 0:02:25]} 18. Qxd3
{[%clk 0:02:27.3]} 18... Ba6 {[%clk 0:02:25.4]} 19. Rc1 {[%clk 0:02:23.7]} 19...
Bb7 {[%clk 0:02:10.5]} 20. Rfe1 {[%clk 0:02:17.3]} 20... g6 {[%clk 0:02:04.3]}
21. f5 {[%clk 0:01:54.3]} 21... Qe7 {[%clk 0:01:57.5]} 22. e5 {[%clk 0:01:47.3]}
22... dxe5 {[%clk 0:01:54.5]} 23. Bxe5 {[%clk 0:01:47.3]} 23... Ng4 {[%clk
0:01:44.3]} 24. Bc3 {[%clk 0:01:43.8]} 24... Qh4 {[%clk 0:01:41.3]} 25. h3
{[%clk 0:01:38.1]} 25... Nf6 {[%clk 0:01:25.5]} 26. Rf1 {[%clk 0:01:31.1]} 26...
Rcd8 {[%clk 0:01:19]} 27. Bxf6 {[%clk 0:01:11.8]} 27... Qxf6 {[%clk 0:01:19.9]}
28. Qc3 {[%clk 0:01:09.5]} 28... Qc6 {[%clk 0:01:19.4]} 29. Rc2 {[%clk
0:00:58.5]} 29... Rd7 {[%clk 0:01:14.1]} 30. fxg6 {[%clk 0:00:56.9]} 30... hxg6
{[%clk 0:01:13.6]} 31. Rcf2 {[%clk 0:00:49.7]} 31... Rde7 {[%clk 0:01:09.7]} 32.
Qc2 {[%clk 0:00:37.9]} 32... Qd6 {[%clk 0:01:04.3]} 33. Ne2 {[%clk 0:00:28.3]}
33... Be4 {[%clk 0:01:00.7]} 34. Qb2 {[%clk 0:00:22]} 34... Bd3 {[%clk
0:00:51.4]} 35. Rd1 {[%clk 0:00:20.6]} 35... Qc5 {[%clk 0:00:50.9]} 36. Nf4
{[%clk 0:00:12.1]} 36... Be4 {[%clk 0:00:42.1]} 37. Nd5 {[%clk 0:00:10]} 37...
Bxd5 {[%clk 0:00:41.7]} 38. Rxd5 {[%clk 0:00:09.5]} 38... Re1+ {[%clk 0:00:39]}
39. Kh2 {[%clk 0:00:08.9]} 39... Qc7+ {[%clk 0:00:32.6]} 40. g3 {[%clk
0:00:06.9]} 40... Qxc4 {[%clk 0:00:31.2]} 41. Rdd2 {[%clk 0:00:04.6]} 41... Qe4
{[%clk 0:00:28.9]} 42. Rg2 {[%clk 0:00:03.3]} 42... Rb1 {[%clk 0:00:27.4]} 43.
Qf6 {[%clk 0:00:03.1]} 43... Qe1 {[%clk 0:00:26]} 44. g4 {[%clk 0:00:02.2]}
44... Qh1+ {[%clk 0:00:22.4]} 45. Kg3 {[%clk 0:00:02.1]} 45... Qe1+ {[%clk
0:00:23.3]} 46. Kh2 {[%clk 0:00:02.3]} 46... Qe5+ {[%clk 0:00:22.5]} 47. Qxe5
{[%clk 0:00:02]} 47... Rxe5 {[%clk 0:00:23.4]} 48. Rd8+ {[%clk 0:00:02.1]} 48...
Kg7 {[%clk 0:00:23.8]} 49. Rd7 {[%clk 0:00:02.6]} 49... a5 {[%clk 0:00:20.5]}
50. Rf2 {[%clk 0:00:02.7]} 50... Kh6 {[%clk 0:00:17.5]} 51. Rdxf7 {[%clk
0:00:02.9]} 51... Rbe1 {[%clk 0:00:15.5]} 52. Rf8 {[%clk 0:00:03.2]} 52... R1e2
{[%clk 0:00:14.9]} 53. Rxe2 {[%clk 0:00:03]} 53... Rxe2+ {[%clk 0:00:15]} 54.
Kg3 {[%clk 0:00:03.9]} 54... Rxa2 {[%clk 0:00:15.4]} 55. h4 {[%clk 0:00:04.5]}
55... Kg7 {[%clk 0:00:15.8]} 56. Rb8 {[%clk 0:00:04.6]} 56... Rb2 {[%clk
0:00:15.5]} 57. g5 {[%clk 0:00:05]} 57... Rb4 {[%clk 0:00:15.7]} 58. Rb7+ {[%clk
0:00:05.2]} 58... Kf8 {[%clk 0:00:15.2]} 59. Rb8+ {[%clk 0:00:05.7]} 59... Ke7
{[%clk 0:00:15.4]} 60. Rb7+ {[%clk 0:00:06.1]} 60... Ke6 {[%clk 0:00:15.9]} 61.
Rg7 {[%clk 0:00:06.5]} 61... Kf5 {[%clk 0:00:16]} 62. Rf7+ {[%clk 0:00:06.9]}
62... Ke5 {[%clk 0:00:16.7]} 63. Rf6 {[%clk 0:00:06.7]} 63... a4 {[%clk
0:00:16.7]} 64. Rxg6 {[%clk 0:00:07.1]} 64... a3 {[%clk 0:00:17.4]} 65. Rg8
{[%clk 0:00:07.2]} 65... Ra4 {[%clk 0:00:15.6]} 66. Re8+ {[%clk 0:00:07]} 66...
Kd6 {[%clk 0:00:14.5]} 67. Re1 {[%clk 0:00:07.2]} 67... a2 {[%clk 0:00:14.4]}
68. Ra1 {[%clk 0:00:07.8]} 68... Ke6 {[%clk 0:00:14.8]} 69. h5 {[%clk
0:00:07.9]} 69... Kf5 {[%clk 0:00:14.8]} 70. g6 {[%clk 0:00:08]} 70... Kf6
{[%clk 0:00:15.4]} 71. Kf3 {[%clk 0:00:08]} 71... b5 {[%clk 0:00:14.6]} 72. Ke3
{[%clk 0:00:08.2]} 72... Kg7 {[%clk 0:00:14.7]} 73. Kd3 {[%clk 0:00:08.2]} 73...
Kh6 {[%clk 0:00:11.4]} 74. Kc3 {[%clk 0:00:08.6]} 74... Kxh5 {[%clk 0:00:06.8]}
75. Kb3 {[%clk 0:00:08.9]} 75... Kxg6 {[%clk 0:00:04.9]} 76. Rxa2 {[%clk
0:00:08.9]} 76... Re4 {[%clk 0:00:03.6]} 77. Ra6+ {[%clk 0:00:09.1]} 77... Kf7
{[%clk 0:00:03.1]} 78. Rb6 {[%clk 0:00:09.4]} 78... Re5 {[%clk 0:00:02.5]} 79.
Kb4 {[%clk 0:00:09]} 79... Ke7 {[%clk 0:00:03]} 80. Rxb5 {[%clk 0:00:09.2]}
80... Rxb5+ {[%clk 0:00:00.7]} 81. Kxb5 {[%clk 0:00:10.1]} 1/2-1/2

[Event "*** SCC Grand Prix: Titled Tuesday Blitz"]
[Site "Chess.com"]
[Date "2020.08.25"]
[Round "7"]
[White "dolynachess"]
[Black "The_Machine04"]
[Result "1-0"]
[WhiteElo "2428"]
[BlackElo "2277"]
[TimeControl "180+1"]
[EndTime "11:21:40 PDT"]
[Termination "dolynachess won by checkmate"]

1. d4 {[%clk 0:02:58.1]} 1... d6 {[%clk 0:02:32.4]} 2. c4 {[%clk 0:02:52]} 2...
e5 {[%clk 0:02:32]} 3. Nf3 {[%clk 0:02:52.4]} 3... e4 {[%clk 0:02:31.6]} 4. Nfd2
{[%clk 0:02:52]} 4... f5 {[%clk 0:02:32.5]} 5. Nc3 {[%clk 0:02:52.5]} 5... Nf6
{[%clk 0:02:32.5]} 6. e3 {[%clk 0:02:52.9]} 6... Be7 {[%clk 0:02:33.1]} 7. b4
{[%clk 0:02:53]} 7... O-O {[%clk 0:02:30.8]} 8. Be2 {[%clk 0:02:53.5]} 8... Be6
{[%clk 0:02:30.3]} 9. a4 {[%clk 0:02:52.3]} 9... g5 {[%clk 0:02:29.7]} 10. h4
{[%clk 0:02:50.5]} 10... g4 {[%clk 0:02:30]} 11. g3 {[%clk 0:02:50.5]} 11... a5
{[%clk 0:02:26.8]} 12. b5 {[%clk 0:02:50]} 12... Nbd7 {[%clk 0:02:26.4]} 13. Ba3
{[%clk 0:02:48.9]} 13... b6 {[%clk 0:02:23.1]} 14. Rc1 {[%clk 0:02:46.2]} 14...
Qe8 {[%clk 0:02:22.6]} 15. Qb3 {[%clk 0:02:40.8]} 15... Qf7 {[%clk 0:02:21.8]}
16. Bd1 {[%clk 0:02:24.2]} 16... d5 {[%clk 0:02:11.4]} 17. cxd5 {[%clk
0:02:10.2]} 17... Nxd5 {[%clk 0:02:12.3]} 18. Nxd5 {[%clk 0:01:33.3]} 18... Bxd5
{[%clk 0:02:12]} 19. Qb2 {[%clk 0:01:23.9]} 19... Bxa3 {[%clk 0:02:01.8]} 20.
Qxa3 {[%clk 0:01:23.1]} 20... Rac8 {[%clk 0:02:00.6]} 21. Bb3 {[%clk 0:01:10.8]}
21... Nf6 {[%clk 0:01:54.7]} 22. Ke2 {[%clk 0:01:08.1]} 22... Kg7 {[%clk
0:01:30.2]} 23. Rc6 {[%clk 0:01:05.1]} 23... Bxb3 {[%clk 0:01:03.1]} 24. Qxb3
{[%clk 0:01:04.8]} 24... Qxb3 {[%clk 0:01:02.7]} 25. Nxb3 {[%clk 0:01:05.7]}
25... Nd5 {[%clk 0:01:03]} 26. Rhc1 {[%clk 0:01:04.3]} 26... Rf6 {[%clk
0:01:01.2]} 27. R6c4 {[%clk 0:00:45]} 27... Kf7 {[%clk 0:00:52.8]} 28. Nd2
{[%clk 0:00:43.2]} 28... Ke7 {[%clk 0:00:50.7]} 29. R4c2 {[%clk 0:00:42.9]}
29... Kd8 {[%clk 0:00:26.6]} 30. Nc4 {[%clk 0:00:40.2]} 30... Nb4 {[%clk
0:00:24.7]} 31. Rd2 {[%clk 0:00:36.8]} 31... Nd5 {[%clk 0:00:12.9]} 32. Ne5
{[%clk 0:00:34.7]} 32... Nb4 {[%clk 0:00:09.8]} 33. Rc4 {[%clk 0:00:27.3]} 33...
h5 {[%clk 0:00:09]} 34. Rd1 {[%clk 0:00:26.5]} 34... Ke7 {[%clk 0:00:06.7]} 35.
Rdc1 {[%clk 0:00:26.4]} 35... Kd8 {[%clk 0:00:07.2]} 36. Nc6+ {[%clk 0:00:25.3]}
36... Nxc6 {[%clk 0:00:06.8]} 37. Rxc6 {[%clk 0:00:26.2]} 37... Rxc6 {[%clk
0:00:04.7]} 38. Rxc6 {[%clk 0:00:27]} 38... Kd7 {[%clk 0:00:04.6]} 39. Rh6
{[%clk 0:00:18.3]} 39... c6 {[%clk 0:00:04.7]} 40. bxc6+ {[%clk 0:00:13]} 40...
Rxc6 {[%clk 0:00:05.6]} 41. Rxh5 {[%clk 0:00:13.5]} 41... Rc2+ {[%clk
0:00:04.7]} 42. Kf1 {[%clk 0:00:13]} 42... Ra2 {[%clk 0:00:03.6]} 43. Rxf5
{[%clk 0:00:10.1]} 43... Rxa4 {[%clk 0:00:03.8]} 44. h5 {[%clk 0:00:11]} 44...
Ke6 {[%clk 0:00:03.4]} 45. h6 {[%clk 0:00:10.1]} 45... Rc4 {[%clk 0:00:02.2]}
46. h7 {[%clk 0:00:10.1]} 46... Rc8 {[%clk 0:00:02.4]} 47. Rb5 {[%clk
0:00:10.4]} 47... a4 {[%clk 0:00:02.1]} 48. Rxb6+ {[%clk 0:00:10.6]} 48... Kf7
{[%clk 0:00:02]} 49. Ra6 {[%clk 0:00:11.5]} 49... Kg7 {[%clk 0:00:02.2]} 50.
Rxa4 {[%clk 0:00:11.8]} 50... Kxh7 {[%clk 0:00:03]} 51. Kg2 {[%clk 0:00:12.3]}
51... Kg6 {[%clk 0:00:03.1]} 52. Ra5 {[%clk 0:00:12.8]} 52... Kf6 {[%clk
0:00:03.2]} 53. Re5 {[%clk 0:00:13.3]} 53... Rc2 {[%clk 0:00:03]} 54. Rxe4
{[%clk 0:00:13.6]} 54... Kg5 {[%clk 0:00:03.9]} 55. Rf4 {[%clk 0:00:14.3]} 55...
Rd2 {[%clk 0:00:03.8]} 56. Re4 {[%clk 0:00:14.4]} 56... Rc2 {[%clk 0:00:04.3]}
57. Re5+ {[%clk 0:00:15.3]} 57... Kf6 {[%clk 0:00:04.8]} 58. Re4 {[%clk
0:00:15.5]} 58... Rd2 {[%clk 0:00:05.5]} 59. Rxg4 {[%clk 0:00:15.3]} 59... Kf5
{[%clk 0:00:06.4]} 60. Rf4+ {[%clk 0:00:16.2]} 60... Kg5 {[%clk 0:00:06.8]} 61.
Kf3 {[%clk 0:00:16.7]} 61... Rc2 {[%clk 0:00:07.3]} 62. Re4 {[%clk 0:00:17.2]}
62... Rd2 {[%clk 0:00:08.2]} 63. Re5+ {[%clk 0:00:18.1]} 63... Kf6 {[%clk
0:00:08.5]} 64. g4 {[%clk 0:00:19]} 64... Rc2 {[%clk 0:00:08.9]} 65. Kg3 {[%clk
0:00:19.7]} 65... Kg6 {[%clk 0:00:09.7]} 66. f3 {[%clk 0:00:20.3]} 66... Kf6
{[%clk 0:00:09.8]} 67. Kf4 {[%clk 0:00:21.2]} 67... Kg6 {[%clk 0:00:10.3]} 68.
g5 {[%clk 0:00:22.1]} 68... Rg2 {[%clk 0:00:09.7]} 69. Re6+ {[%clk 0:00:22.3]}
69... Kf7 {[%clk 0:00:09.1]} 70. Rf6+ {[%clk 0:00:22.9]} 70... Kg7 {[%clk
0:00:09.3]} 71. e4 {[%clk 0:00:23.6]} 71... Rh2 {[%clk 0:00:09.4]} 72. d5 {[%clk
0:00:24.5]} 72... Rh4+ {[%clk 0:00:09.7]} 73. Ke5 {[%clk 0:00:24.6]} 73... Rh1
{[%clk 0:00:10.6]} 74. f4 {[%clk 0:00:25.1]} 74... Rg1 {[%clk 0:00:10.9]} 75.
Rc6 {[%clk 0:00:25.3]} 75... Rf1 {[%clk 0:00:11.1]} 76. Kf5 {[%clk 0:00:25.4]}
76... Re1 {[%clk 0:00:10.9]} 77. Rc7+ {[%clk 0:00:25.9]} 77... Kf8 {[%clk
0:00:11.8]} 78. e5 {[%clk 0:00:25.2]} 78... Ke8 {[%clk 0:00:12.1]} 79. d6 {[%clk
0:00:25.9]} 79... Kd8 {[%clk 0:00:11.1]} 80. g6 {[%clk 0:00:26.8]} 80... Rg1
{[%clk 0:00:10.5]} 81. Kf6 {[%clk 0:00:26.6]} 81... Rg2 {[%clk 0:00:10.1]} 82.
f5 {[%clk 0:00:26.8]} 82... Rg4 {[%clk 0:00:10.2]} 83. g7 {[%clk 0:00:26.5]}
83... Rg2 {[%clk 0:00:10.2]} 84. Ke6 {[%clk 0:00:26.8]} 84... Rg1 {[%clk
0:00:10.3]} 85. f6 {[%clk 0:00:27.1]} 85... Rg2 {[%clk 0:00:10.4]} 86. Ra7
{[%clk 0:00:27.5]} 86... Rg1 {[%clk 0:00:11.2]} 87. Ra8# {[%clk 0:00:27.7]} 1-0

[Event "*** SCC Grand Prix: Titled Tuesday Blitz"]
[Site "Chess.com"]
[Date "2020.08.25"]
[Round "7"]
[White "wonderfultime"]
[Black "Arjun2002"]
[Result "1-0"]
[WhiteElo "2892"]
[BlackElo "2716"]
[TimeControl "180+1"]
[EndTime "11:21:45 PDT"]
[Termination "wonderfultime won by resignation"]

1. d4 {[%clk 0:02:59.6]} 1... d5 {[%clk 0:02:59.9]} 2. Nf3 {[%clk 0:02:55.2]}
2... Nf6 {[%clk 0:02:59.7]} 3. Bf4 {[%clk 0:02:55.4]} 3... c5 {[%clk 0:02:59.1]}
4. c3 {[%clk 0:02:55]} 4... Nc6 {[%clk 0:02:59.3]} 5. e3 {[%clk 0:02:55.4]} 5...
Qb6 {[%clk 0:02:59.4]} 6. Qc2 {[%clk 0:02:55.8]} 6... g6 {[%clk 0:02:58.4]} 7.
Nbd2 {[%clk 0:02:55.9]} 7... Bf5 {[%clk 0:02:58.2]} 8. dxc5 {[%clk 0:02:55.8]}
8... Qxc5 {[%clk 0:02:56.3]} 9. Qb3 {[%clk 0:02:56.7]} 9... Qb6 {[%clk
0:02:53.3]} 10. Be2 {[%clk 0:02:55.8]} 10... Bg7 {[%clk 0:02:51.8]} 11. O-O
{[%clk 0:02:56]} 11... O-O {[%clk 0:02:51.7]} 12. Rfd1 {[%clk 0:02:56.5]} 12...
Nd7 {[%clk 0:02:39.3]} 13. Bg3 {[%clk 0:02:41.1]} 13... h6 {[%clk 0:02:33.8]}
14. Nd4 {[%clk 0:02:29.4]} 14... Nxd4 {[%clk 0:02:31.7]} 15. cxd4 {[%clk
0:02:25.2]} 15... e6 {[%clk 0:02:26.3]} 16. Rdc1 {[%clk 0:02:20.7]} 16... Rfc8
{[%clk 0:02:25.4]} 17. Qxb6 {[%clk 0:02:02.2]} 17... Nxb6 {[%clk 0:02:21.6]} 18.
Bc7 {[%clk 0:02:02.5]} 18... Bf8 {[%clk 0:02:08.6]} 19. g4 {[%clk 0:01:58.5]}
19... Be4 {[%clk 0:01:59]} 20. f3 {[%clk 0:01:26.5]} 20... Bb4 {[%clk
0:01:58.8]} 21. Nf1 {[%clk 0:01:26.7]} 21... Nc4 {[%clk 0:01:38.3]} 22. Bg3
{[%clk 0:01:17.1]} 22... Nxb2 {[%clk 0:00:54.5]} 23. fxe4 {[%clk 0:01:15.7]}
23... dxe4 {[%clk 0:00:55.4]} 24. Rab1 {[%clk 0:01:01.5]} 24... Ba3 {[%clk
0:00:53.7]} 25. Nd2 {[%clk 0:00:58.7]} 25... f5 {[%clk 0:00:52.5]} 26. gxf5
{[%clk 0:00:57.1]} 26... gxf5 {[%clk 0:00:52.2]} 27. Bc4 {[%clk 0:00:19.9]}
27... Kf7 {[%clk 0:00:45.5]} 28. Bb3 {[%clk 0:00:20.3]} 28... b5 {[%clk
0:00:37.6]} 29. d5 {[%clk 0:00:16.3]} 29... Nc4 {[%clk 0:00:32.3]} 30. dxe6+
{[%clk 0:00:16.7]} 30... Kxe6 {[%clk 0:00:31.3]} 31. Nxc4 {[%clk 0:00:14.6]}
31... Bxc1 {[%clk 0:00:31.4]} 32. Nb6+ {[%clk 0:00:12.4]} 32... Kf6 {[%clk
0:00:28.7]} 33. Nxa8 {[%clk 0:00:06.6]} 33... Bxe3+ {[%clk 0:00:28.8]} 34. Bf2
{[%clk 0:00:07.4]} 34... Bxf2+ {[%clk 0:00:28.7]} 35. Kxf2 {[%clk 0:00:08.3]}
35... Rxa8 {[%clk 0:00:29.2]} 36. Rc1 {[%clk 0:00:09.2]} 36... Rb8 {[%clk
0:00:24.6]} 37. Rc5 {[%clk 0:00:09]} 37... a5 {[%clk 0:00:22.3]} 38. Ke3 {[%clk
0:00:07.3]} 38... a4 {[%clk 0:00:20.1]} 39. Bc2 {[%clk 0:00:07.7]} 39... Kg5
{[%clk 0:00:17.9]} 40. Bxe4 {[%clk 0:00:07.8]} 40... b4 {[%clk 0:00:16.4]} 41.
Rxf5+ {[%clk 0:00:07.7]} 41... Kg4 {[%clk 0:00:16.9]} 42. Ra5 {[%clk 0:00:07.9]}
42... b3 {[%clk 0:00:17.2]} 43. Rxa4 {[%clk 0:00:07]} 43... b2 {[%clk 0:00:16]}
44. Bb1+ {[%clk 0:00:05.1]} 44... Kh3 {[%clk 0:00:15.7]} 45. Kd2 {[%clk
0:00:05.6]} 45... Kxh2 {[%clk 0:00:15.8]} 46. Rh4+ {[%clk 0:00:05.8]} 46... Kg3
{[%clk 0:00:15.8]} 47. Rxh6 {[%clk 0:00:06.3]} 47... Kf4 {[%clk 0:00:16.3]} 48.
Rh3 {[%clk 0:00:06]} 48... Ke5 {[%clk 0:00:16.1]} 49. Kc2 {[%clk 0:00:05.9]}
49... Kd4 {[%clk 0:00:16.4]} 50. Rb3 {[%clk 0:00:06.2]} 50... Rh8 {[%clk
0:00:14.3]} 51. Kxb2 {[%clk 0:00:06.4]} 51... Rh2+ {[%clk 0:00:15.2]} 52. Ka3
{[%clk 0:00:06.5]} 52... Kc5 {[%clk 0:00:16.1]} 53. Rc3+ {[%clk 0:00:06.3]}
53... Kb5 {[%clk 0:00:16]} 54. Kb3 {[%clk 0:00:06.4]} 54... Rh4 {[%clk
0:00:15.5]} 55. Bd3+ {[%clk 0:00:06.5]} 55... Kb6 {[%clk 0:00:15.8]} 56. Rc4
{[%clk 0:00:06.6]} 56... Rh3 {[%clk 0:00:15.6]} 57. Kc3 {[%clk 0:00:07]} 57...
Rh2 {[%clk 0:00:15.6]} 58. a3 {[%clk 0:00:07.3]} 58... Ra2 {[%clk 0:00:15.1]}
59. Kb3 {[%clk 0:00:06.8]} 59... Ra1 {[%clk 0:00:15.5]} 60. Kb4 {[%clk
0:00:06.1]} 60... Rd1 {[%clk 0:00:14.6]} 61. Bc2 {[%clk 0:00:06.1]} 61... Rd2
{[%clk 0:00:14.6]} 62. a4 {[%clk 0:00:06.5]} 62... Rf2 {[%clk 0:00:14.3]} 63.
a5+ {[%clk 0:00:06]} 63... Ka7 {[%clk 0:00:14.7]} 64. Bb3 {[%clk 0:00:04.2]}
64... Rf3 {[%clk 0:00:14.1]} 65. Ba4 {[%clk 0:00:04.3]} 65... Rf5 {[%clk
0:00:13.5]} 66. Rc7+ {[%clk 0:00:04.2]} 66... Ka6 {[%clk 0:00:12.5]} 67. Rc6+
{[%clk 0:00:04.8]} 67... Ka7 {[%clk 0:00:12.9]} 68. Rc5 {[%clk 0:00:05.7]} 68...
Rf4+ {[%clk 0:00:09.6]} 69. Kb5 {[%clk 0:00:06.1]} 69... Rf7 {[%clk 0:00:08.9]}
70. a6 {[%clk 0:00:05.9]} 70... Rf6 {[%clk 0:00:07.4]} 71. Rc7+ {[%clk
0:00:06.1]} 71... Ka8 {[%clk 0:00:07.8]} 72. Ka5 {[%clk 0:00:05.3]} 72... Rf5+
{[%clk 0:00:07.7]} 73. Bb5 {[%clk 0:00:05.8]} 73... Rg5 {[%clk 0:00:07.6]} 74.
Kb6 {[%clk 0:00:05.8]} 74... Rg6+ {[%clk 0:00:03.9]} 75. Bc6+ {[%clk 0:00:06]}
75... Rxc6+ {[%clk 0:00:03.5]} 76. Rxc6 {[%clk 0:00:06.9]} 1-0

[Event "*** SCC Grand Prix: Titled Tuesday Blitz"]
[Site "Chess.com"]
[Date "2020.08.25"]
[Round "7"]
[White "cukin84"]
[Black "boasovietica"]
[Result "1/2-1/2"]
[WhiteElo "2063"]
[BlackElo "2389"]
[TimeControl "180+1"]
[EndTime "11:22:27 PDT"]
[Termination "Game drawn - timeout vs insufficient material"]

1. e4 {[%clk 0:03:00.9]} 1... e5 {[%clk 0:02:56.6]} 2. Nf3 {[%clk 0:03:00.1]}
2... Nc6 {[%clk 0:02:56.8]} 3. c3 {[%clk 0:02:59.7]} 3... Nf6 {[%clk 0:02:54.9]}
4. d4 {[%clk 0:02:58.1]} 4... d5 {[%clk 0:02:50]} 5. Nxe5 {[%clk 0:02:55.7]}
5... Nxe5 {[%clk 0:02:39]} 6. dxe5 {[%clk 0:02:54.8]} 6... Nxe4 {[%clk
0:02:39.2]} 7. Be2 {[%clk 0:02:50.3]} 7... Bc5 {[%clk 0:02:36.6]} 8. O-O {[%clk
0:02:49.2]} 8... Qh4 {[%clk 0:02:28.9]} 9. g3 {[%clk 0:02:34.4]} 9... Nxg3
{[%clk 0:02:19.3]} 10. hxg3 {[%clk 0:02:06.8]} 10... Qxg3+ {[%clk 0:02:20.2]}
11. Kh1 {[%clk 0:02:06.6]} 11... Qh3+ {[%clk 0:02:20.3]} 12. Kg1 {[%clk
0:02:06.2]} 12... Qg3+ {[%clk 0:02:20.8]} 13. Kh1 {[%clk 0:02:06.1]} 13... Bxf2
{[%clk 0:02:21.5]} 14. Qd3 {[%clk 0:02:00.5]} 14... Qxd3 {[%clk 0:01:54.8]} 15.
Bxd3 {[%clk 0:01:59.7]} 15... Bh4 {[%clk 0:01:54.2]} 16. Nd2 {[%clk 0:01:46.3]}
16... Be6 {[%clk 0:01:30.7]} 17. Nf3 {[%clk 0:01:45]} 17... Be7 {[%clk
0:01:28.2]} 18. Nd4 {[%clk 0:01:44.4]} 18... Bd7 {[%clk 0:00:39.5]} 19. Nf5
{[%clk 0:01:40.2]} 19... Bf8 {[%clk 0:00:36.6]} 20. Bg5 {[%clk 0:01:37.2]} 20...
h6 {[%clk 0:00:33.2]} 21. Bh4 {[%clk 0:01:36.4]} 21... a6 {[%clk 0:00:29.4]} 22.
Rae1 {[%clk 0:01:34.5]} 22... g6 {[%clk 0:00:29.1]} 23. Nd4 {[%clk 0:01:33.2]}
23... c5 {[%clk 0:00:29.1]} 24. Nf3 {[%clk 0:01:25.4]} 24... Be6 {[%clk
0:00:26.9]} 25. Bf6 {[%clk 0:01:23.1]} 25... Rg8 {[%clk 0:00:27.1]} 26. b3
{[%clk 0:01:14.5]} 26... Kd7 {[%clk 0:00:26.9]} 27. Kg2 {[%clk 0:01:13.5]} 27...
Kc6 {[%clk 0:00:26.6]} 28. a4 {[%clk 0:01:12.6]} 28... b5 {[%clk 0:00:26.6]} 29.
Ra1 {[%clk 0:01:10.7]} 29... bxa4 {[%clk 0:00:09.3]} 30. Rxa4 {[%clk 0:01:09.7]}
30... g5 {[%clk 0:00:08.4]} 31. Rfa1 {[%clk 0:01:07.3]} 31... g4 {[%clk
0:00:07.4]} 32. Rxa6+ {[%clk 0:01:02.2]} 32... Rxa6 {[%clk 0:00:07.2]} 33. Rxa6+
{[%clk 0:01:02.1]} 33... Kb7 {[%clk 0:00:07.8]} 34. Nd2 {[%clk 0:01:00.6]} 34...
c4 {[%clk 0:00:07.9]} 35. Rxe6 {[%clk 0:00:55.3]} 35... fxe6 {[%clk 0:00:08.8]}
36. bxc4 {[%clk 0:00:55.3]} 36... dxc4 {[%clk 0:00:08.4]} 37. Bxc4 {[%clk
0:00:55.4]} 37... Bc5 {[%clk 0:00:04]} 38. Bxe6 {[%clk 0:00:54.3]} 38... Re8
{[%clk 0:00:03]} 39. Bxg4 {[%clk 0:00:50.6]} 39... Kb6 {[%clk 0:00:02.4]} 40.
Ne4 {[%clk 0:00:49]} 40... Be7 {[%clk 0:00:02.2]} 41. Bg7 {[%clk 0:00:45.8]}
41... Kb5 {[%clk 0:00:01.5]} 42. Bxh6 {[%clk 0:00:43.8]} 42... Kc4 {[%clk
0:00:01.6]} 43. Nd6+ {[%clk 0:00:42.6]} 43... Bxd6 {[%clk 0:00:01]} 44. exd6
{[%clk 0:00:42.8]} 44... Rd8 {[%clk 0:00:01.6]} 45. d7 {[%clk 0:00:42.9]} 45...
Kxc3 {[%clk 0:00:02]} 46. Bg5 {[%clk 0:00:42.8]} 46... Rxd7 {[%clk 0:00:01.7]}
47. Bxd7 {[%clk 0:00:42.4]} 47... Kd4 {[%clk 0:00:02.6]} 48. Be7 {[%clk
0:00:40.6]} 48... Ke5 {[%clk 0:00:03.5]} 49. Kf3 {[%clk 0:00:40.7]} 49... Kd5
{[%clk 0:00:04.4]} 50. Kf4 {[%clk 0:00:40.7]} 50... Kd4 {[%clk 0:00:04.9]} 51.
Be6 {[%clk 0:00:38.3]} 51... Kd3 {[%clk 0:00:04]} 52. Bf6 {[%clk 0:00:38.2]}
52... Kd2 {[%clk 0:00:03.1]} 53. Ke4 {[%clk 0:00:38]} 53... Ke2 {[%clk
0:00:03.5]} 54. Bc4+ {[%clk 0:00:38.1]} 54... Kd2 {[%clk 0:00:03.7]} 55. Bd4
{[%clk 0:00:38.1]} 55... Kc2 {[%clk 0:00:04]} 56. Ke3 {[%clk 0:00:36.9]} 56...
Kc1 {[%clk 0:00:03.7]} 57. Be2 {[%clk 0:00:33]} 57... Kc2 {[%clk 0:00:03.7]} 58.
Bd3+ {[%clk 0:00:32.1]} 58... Kc1 {[%clk 0:00:04]} 59. Be5 {[%clk 0:00:28.1]}
59... Kd1 {[%clk 0:00:03.6]} 60. Bg3 {[%clk 0:00:27.5]} 60... Kc1 {[%clk
0:00:03.7]} 61. Be2 {[%clk 0:00:27.2]} 61... Kc2 {[%clk 0:00:01.3]} 62. Bf3
{[%clk 0:00:25.2]} 62... Kc1 {[%clk 0:00:01.5]} 63. Kd3 {[%clk 0:00:24.7]} 63...
Kb2 {[%clk 0:00:01.5]} 64. Bf4 {[%clk 0:00:24.7]} 64... Kb3 {[%clk 0:00:01.9]}
65. Bd5+ {[%clk 0:00:24.2]} 65... Kb4 {[%clk 0:00:02.1]} 66. Bd6+ {[%clk
0:00:24]} 66... Kb5 {[%clk 0:00:02.2]} 67. Kc3 {[%clk 0:00:23.1]} 67... Kb6
{[%clk 0:00:02.4]} 68. Kb4 {[%clk 0:00:22.8]} 68... Ka7 {[%clk 0:00:01.8]} 69.
Bc5+ {[%clk 0:00:19.9]} 69... Kb8 {[%clk 0:00:01.9]} 70. Kb5 {[%clk 0:00:20.2]}
70... Kc7 {[%clk 0:00:02.5]} 71. Be7 {[%clk 0:00:19.8]} 71... Kd7 {[%clk
0:00:02.7]} 72. Bg5 {[%clk 0:00:19.6]} 72... Kd6 {[%clk 0:00:02.8]} 73. Bf3
{[%clk 0:00:19.6]} 73... Ke5 {[%clk 0:00:03.3]} 74. Kc5 {[%clk 0:00:19.4]} 74...
Kf5 {[%clk 0:00:03.5]} 75. Be3 {[%clk 0:00:19.1]} 75... Ke5 {[%clk 0:00:04.4]}
76. Kc6 {[%clk 0:00:17.9]} 76... Ke6 {[%clk 0:00:04.5]} 77. Bf4 {[%clk
0:00:16.6]} 77... Kf5 {[%clk 0:00:04.8]} 78. Bg3 {[%clk 0:00:16.8]} 78... Ke6
{[%clk 0:00:04.5]} 79. Kc5 {[%clk 0:00:16.7]} 79... Kf5 {[%clk 0:00:04.7]} 80.
Kd5 {[%clk 0:00:16.8]} 80... Kf6 {[%clk 0:00:03.9]} 81. Bg4 {[%clk 0:00:12]}
81... Kg5 {[%clk 0:00:03.9]} 82. Be6 {[%clk 0:00:12.2]} 82... Kf6 {[%clk
0:00:04.4]} 83. Be5+ {[%clk 0:00:12.4]} 83... Ke7 {[%clk 0:00:04.3]} 84. Bf5
{[%clk 0:00:10.9]} 84... Kf7 {[%clk 0:00:04.4]} 85. Kd6 {[%clk 0:00:10.9]} 85...
Ke8 {[%clk 0:00:04.6]} 86. Ke6 {[%clk 0:00:10.6]} 86... Kf8 {[%clk 0:00:04.8]}
87. Bg6 {[%clk 0:00:09.2]} 87... Kg8 {[%clk 0:00:04.6]} 88. Bf6 {[%clk
0:00:07.2]} 88... Kf8 {[%clk 0:00:05]} 89. Be5 {[%clk 0:00:04.9]} 89... Kg8
{[%clk 0:00:04.8]} 90. Kf6 {[%clk 0:00:02.8]} 90... Kf8 {[%clk 0:00:05.3]} 91.
Bd6+ {[%clk 0:00:03]} 91... Kg8 {[%clk 0:00:05.9]} 92. Bf7+ {[%clk 0:00:03.2]}
92... Kh7 {[%clk 0:00:05.9]} 93. Bf4 {[%clk 0:00:01.9]} 93... Kh8 {[%clk
0:00:05.9]} 1/2-1/2